Cogmind - Beta 13 @@@ ROGUE MODE // 2024.04.19 @ 15:41:16 Player: Barbarossa Result: Destroyed by G-47 Trooper with Particle Gun Performance ------------- Evolutions (2) 1000 Regions Visited (3) 600 Robots Destroyed (50) 250 Value Destroyed (1529) 1529 Prototype IDs (4) 80 Alien Tech Used (0) 0 Bonus (8) 8 TOTAL SCORE: 3467 Bonus ------- High Alert Combat Kills 8 Cogmind --------- Core Integrity 0/550 Matter 273/300 Energy 17/265 System Corruption 1% Temperature Cool (27) Movement Core (600) Ox11 Location -8/Materials Parts ------- > --- POWER (1) -------- Improved Ion Engine > --- PROPULSION (3) --- (None) > --- UTILITY (5) ------ Improved Heat Sink Large Storage Unit Targeting Computer > --- WEAPON (2) ------- Precision Beam Rifle Advanced EMP Blaster > --- INVENTORY (15) --- Light Ion Engine Light Treads Light Treads Compact Matter Pod (150) Compact Matter Pod (60) Compact Matter Pod (50) Recoil Stabilizer Improved Weapon Shielding Precision Beam Rifle Precision Beam Rifle Advanced Beam Rifle Advanced Beam Rifle Flak Cannon Grenade Launcher Peak State ------------ > --- POWER ------------ Improved Ion Engine > --- PROPULSION ------- Improved Treads Improved Treads Improved Treads > --- UTILITY ---------- Large Storage Unit Compact Matter Pod Targeting Computer Improved Weapon Shielding Improved Weapon Shielding > --- WEAPON ----------- Advanced Beam Rifle Minigun > --- INVENTORY -------- Light Ion Engine Light Deuterium Engine Light Treads Light Treads Heat Sink Improved Heat Sink Improved Heat Sink Compact Matter Pod Compact Matter Pod Recoil Stabilizer Improved Weapon Shielding Beam Rifle Minigun Minigun Grenade Launcher [Rating: 29] Favorites ----------- Power Light Ion Engine Engine Light Ion Engine Propulsion Improved Treads Treads Improved Treads Leg Aluminum Leg Wheel Compact Wheel Utility Targeting Computer Device Improved Heat Sink Storage Large Storage Unit Processor Targeting Computer Protection Light Armor Plating Weapon Precision Beam Rifle Energy Gun Precision Beam Rifle Ballistic Gun Light Assault Rifle Launcher Advanced EMP Blaster Build | -11 -10 -9 -8 ------- Run | Yrd Mat Mat Mat Slots Evolved 4 | . . 2 2 Power . | . . . . Propulsion 1 | . . 1 . Utility 3 | . . 1 2 Weapon . | . . . . Parts Attached 32 | 2 1 11 18 Power 4 | . . 1 3 Engine 4 | . . 1 3 Core . | . . . . Reactor . | . . . . Propulsion 7 | 2 . 5 . Treads 3 | . . 3 . Leg . | . . . . Wheel 4 | 2 . 2 . Hover . | . . . . Flight . | . . . . Utility 12 | . 1 4 7 Device 2 | . . . 2 Storage 3 | . . 2 1 Processor 1 | . . 1 . Hackware . | . . . . Protection 6 | . 1 1 4 Artifact . | . . . . Weapon 9 | . . 1 8 Energy Gun 6 | . . 1 5 Energy Cannon . | . . . . Ballistic Gun 2 | . . . 2 Ballistic Cannon . | . . . . Launcher 1 | . . . 1 Special Weapon . | . . . . Impact Weapon . | . . . . Slashing Weapon . | . . . . Piercing Weapon . | . . . . Special Melee Weapon . | . . . . Unidentified Prototypes 4 | . . . 4 Parts Lost 16 | . . 7 9 Power 2 | . . 1 1 Propulsion 6 | . . 3 3 Utility 5 | . . 1 4 Weapon 3 | . . 2 1 Highest Loss Streak 6 | . . 4 6 To Critical Strikes . | . . . . Average Slot Usage (%) 91 | . 90 90 93 Engine 10 | . 14 10 9 Treads 13 | . . 10 22 Wheel 12 | . 28 20 . Device 2 | . . . 5 Storage 12 | . 14 11 12 Processor 7 | . . 11 9 Protection 12 | . 4 10 16 Energy Gun 11 | . 14 8 13 Ballistic Gun 7 | . 14 7 4 Naked Turns . | . . . . Heaviest Build 38 | 11 14 32 38 Greatest Support 69 | 32 32 69 69 Greatest Overweight (x) 9 | . . 1 9 Average Overweight (x) . | . . . . Largest Inventory Capacity 15 | 8 8 15 15 Average Capacity 13 | 8 8 14 15 Most Carried 15 | 5 8 15 15 Average Carried 10 | 4 6 9 13 Final Capacity 15 | 8 8 15 15 Final Carried 15 | 3 8 15 14 Class Distribution -------------------- 100% | Mutant Dominant Class ---------------- Mutant | -10/Materials Mutant | -9/Materials Mutant | -8/Materials Resources | -11 -10 -9 -8 ----------- Run | Yrd Mat Mat Mat Matter Collected 898 | 200 31 136 531 Remotely . | . . . . Salvage Created 2155 | . 147 616 1392 Parts 112 | . 17 38 57 Haulers Intercepted 4 | . . . 4 Recyclers Shooed 1 | . . . 1 Parts Field Recycled . | . . . . Retrieved Matter . | . . . . Parts Self-Destructed . | . . . . Prevented . | . . . . Kills | -11 -10 -9 -8 ------- Run | Yrd Mat Mat Mat Combat Hostiles Destroyed 34 | . 2 14 18 Guns 31 | . . 14 17 AOE 2 | . 2 . . Classes Destroyed 11 | . 4 4 3 Worker 1 | . 1 . . Builder 2 | . . 1 1 Tunneler 1 | . . 1 . Hauler 4 | . . . 4 Recycler 2 | . . . 2 Operator 4 | . 2 . 2 Watcher 2 | . 1 . 1 Swarmer 2 | . . 2 . Grunt 26 | . 2 10 14 Duelist 2 | . . . 2 Sentry 4 | . . 2 2 Best Kill Streak 7 | . 3 6 7 Combat Bots Only 6 | . 2 6 6 Max Kills in Single Turn 3 | . 3 1 2 Gunslinging . | . . . . Exploded 2 | . 2 . . Melee . | . . . . Uniques/NPCs Destroyed . | . . . . Combat | -11 -10 -9 -8 -------- Run | Yrd Mat Mat Mat Hostile Shots Fired 243 | . 3 76 164 Missed 62 | . . 17 45 Damage Taken 2631 | . 36 641 1954 Core 651 | . 24 77 550 Absorbed by Shields . | . . . . Redirected to Shielding 286 | . . . 286 Core Remaining (%) 90 | 100 90 80 . Volleys Fired 152 | . 13 47 92 Largest 2 | . 2 2 2 Hottest 122 | . 60 60 122 Shots Fired 268 | . 26 78 164 Gun 266 | . 26 78 162 Cannon . | . . . . Launcher 2 | . . . 2 Special . | . . . . Kinetic 92 | . 13 40 39 Thermal 106 | . . . 106 Explosive . | . . . . Electromagnetic 70 | . 13 38 19 Robot Hit Streak 23 | . 4 12 23 Robot Miss Streak 4 | . 4 3 2 Penetration Max . | . . . . Secondary Targets 8 | . . 1 7 Max Gunslinging Chain 1 | . . 1 1 Shots Hit Robots 205 | . 12 58 135 Core Hits 89 | . 7 29 53 Critical Kills . | . . . . Critical Parts Destroyed . | . . . . Critical Strikes 12 | . . . 12 Burn 12 | . . . 12 Melee Attacks . | . . . . Impact . | . . . . Slashing . | . . . . Piercing . | . . . . Sneak Attacks . | . . . . Combat Hostiles . | . . . . Follow-up Attacks . | . . . . Damage Inflicted 3661 | . 246 734 2681 Guns 3112 | . 162 617 2333 Cannons . | . . . . Explosions 549 | . 84 117 348 Melee . | . . . . Ramming . | . . . . Kinetic 800 | . 43 230 527 Thermal 1817 | . 84 117 1616 Explosive . | . . . . Electromagnetic 1044 | . 119 387 538 Impact . | . . . . Slashing . | . . . . Piercing . | . . . . Highest Corruption 1 | . . . 1 Average Corruption 1 | . . . 1 Corruption Purged . | . . . . Corruption Blocked . | . . . . Effects 1 | . . . 1 Data Loss (minor) 1 | . . . 1 Overload Shots . | . . . . Overflow Damage 2 | . . . 2 Projectiles . | . . . . Explosions 2 | . . . 2 Melee . | . . . . Knockbacks . | . . . . Impact . | . . . . Kinetic . | . . . . Secondary . | . . . . Self-Inflicted Damage 10 | . . . 10 Shots 1 | . . . 1 Rammed 1 | . . . 1 Targets Rammed 1 | . . . 1 Kicked . | . . . . Crushed . | . . . . Highest Temperature 302 | . 58 141 302 Average Temperature 81 | . 19 51 103 Received Heat Transfer 1437 | . 18 285 1134 Effects 4 | . . . 4 Energy Bleed 1 | . . . 1 Interference 3 | . . . 3 Siege Activations . | . . . . Robots Corrupted . | . . . . Combat Hostiles . | . . . . Parts Fried . | . . . . Impact Corruptions . | . . . . Robots Melted 1 | . . . 1 Combat Hostiles 1 | . . . 1 Parts Melted 10 | . . 2 8 Heat Transferred 4616 | . 100 150 4366 Parts Sabotaged . | . . . . Parts Stolen . | . . . . Parts Stripped . | . . . . Power Chain Reactions 4 | . 1 3 . Alert | -11 -10 -9 -8 ------- Run | Yrd Mat Mat Mat Peak Influence 409 | . 118 409 367 Initial 87 | . . 49 87 Average 193 | . 86 236 207 Maximum Alert Level 2 | . . 2 1 Low Security (%) 48 | 100 100 24 46 Level 1 46 | . . 63 53 Level 2 4 | . . 12 . Level 3 . | . . . . Level 4 . | . . . . Level 5 . | . . . . High Security . | . . . . Max Security . | . . . . Squads Dispatched 8 | . 1 2 5 Investigation 1 | . . 1 . Extermination . | . . . . Reinforcement 6 | . 1 1 4 Assault . | . . . . Garrison 1 | . . . 1 Intercept . | . . . . Searches Triggered . | . . . . Construction Impeded 2 | . . 1 1 Haulers Reinforced . | . . . . Active Scanning Responses . | . . . . Cargo Convoy Interrupts . | . . . . Stealth | -11 -10 -9 -8 --------- Run | Yrd Mat Mat Mat Distress Signals 7 | . . 2 5 Communications Jammed . | . . . . Distress Signals . | . . . . Times Spotted 67 | . 6 18 43 Peak Tracking Total 11 | . 2 5 11 Tactical Retreats 1 | . . . 1 Traps | -11 -10 -9 -8 ------- Run | Yrd Mat Mat Mat Traps Triggered 1 | . . . 1 Indirectly . | . . . . Trap Hack Attempts . | . . . . Triggered . | . . . . Disarmed . | . . . . Reprogrammed . | . . . . Reused . | . . . . Traps Extracted . | . . . . Installed . | . . . . Triggered . | . . . . Machines | -11 -10 -9 -8 ---------- Run | Yrd Mat Mat Mat Machines Disabled 1 | . . . 1 Max in Single Turn 1 | . . . 1 Garrison Access 1 | . . . 1 Machines Repaired . | . . . . Machines Dismantled . | . . . . Machines Sabotaged . | . . . . Overloaded Fab Kills . | . . . . Hacking | -11 -10 -9 -8 --------- Run | Yrd Mat Mat Mat Machines Accessed 8 | . 3 3 2 Terminals 7 | . 3 3 1 Fabricators . | . . . . Repair Stations . | . . . . Recycling Units . | . . . . Scanalyzers . | . . . . Garrison Access 1 | . . . 1 Total Hacks 25 | . 10 9 6 Successful 8 | . 5 1 2 Failed 17 | . 5 8 4 Catastrophic 1 | . . . 1 Database Lockouts . | . . . . Manual 20 | . 10 9 1 Terminals 20 | . 10 9 1 Fabricators . | . . . . Repair Stations . | . . . . Recycling Units . | . . . . Scanalyzers . | . . . . Garrison Access 5 | . . . 5 Terminal Hacks 2 | . 2 . . Level Access Points 1 | . 1 . . Terminal Index 1 | . 1 . . Fabricator Hacks . | . . . . Repair Station Hacks . | . . . . Recycling Unit Hacks . | . . . . Scanalyzer . | . . . . Garrison Access Hacks 1 | . . . 1 Seal Access 1 | . . . 1 Unauthorized Hacks 5 | . 3 1 1 Terminals 5 | . 3 1 1 Botnet 5 | . 3 1 1 Fabricators . | . . . . Repair Stations . | . . . . Recycling Units . | . . . . Scanalyzers . | . . . . Garrison Access . | . . . . Data Cores Recovered 1 | . 1 . . Used . | . . . . Hacking Detections 6 | . 2 3 1 Full Trace Events 1 | . . 1 . Feedback Events . | . . . . Feedback Blocked . | . . . . Robot Schematics Acquired . | . . . . Robots Built . | . . . . Authchips . | . . . . Time . | . . . . Total Robot Build Rating . | . . . . Part Schematics Acquired . | . . . . Parts Built . | . . . . Authchips . | . . . . Time . | . . . . Total Part Build Rating . | . . . . Parts Repaired . | . . . . Time . | . . . . Parts Recycled . | . . . . Recycled Matter . | . . . . Retrieved Matter . | . . . . Retrieved Components . | . . . . Parts Scanalyzed . | . . . . Part Schematics Acquired . | . . . . Parts Damaged . | . . . . Bothacking | -11 -10 -9 -8 ------------ Run | Yrd Mat Mat Mat Used RIF Installer . | . . . . Robots Hacked . | . . . . Non-combat . | . . . . Combat . | . . . . Robot Hacks Applied . | . . . . Relay Couplers Released . | . . . . Fabnet Peak Effective % . | . . . . Robots Rewired . | . . . . Allies Hacked . | . . . . Hacks Repelled . | . . . . Allies | -11 -10 -9 -8 -------- Run | Yrd Mat Mat Mat Total Allies . | . . . . Largest Group . | . . . . Highest-Rated Group . | . . . . Highest-Rated Ally . | . . . . Total Orders . | . . . . Ally Attacks . | . . . . Total Damage . | . . . . Kills . | . . . . Allies Corrupted . | . . . . Allies Melted . | . . . . Intel | -11 -10 -9 -8 ------- Run | Yrd Mat Mat Mat Robot Analysis Total . | . . . . Derelict Logs Recovered . | . . . . Drone Launches . | . . . . Drone Recoveries . | . . . . Exploration | -11 -10 -9 -8 ------------- Run | Yrd Mat Mat Mat Turns Passed 1416 | 5 268 487 656 Spaces Moved 730 | 1 226 295 208 Core 3 | . . . 3 Treads 285 | . . 80 205 Legs . | . . . . Wheels 442 | 1 226 215 . Hover . | . . . . Flight . | . . . . Fastest Speed 93 | 100 100 93 160 Average Speed 123 | 100 100 111 164 Slowest Speed 500 | 100 100 160 500 Overloaded Moves . | . . . . Propulsion Burnouts . | . . . . Robots Hopped . | . . . . Cave-ins Triggered . | . . . . Exploration Rate (%) 26 | 2 47 32 23 Regions Visited 3 Branch Regions . Pre-discovered Areas . | . . . . Known Exits Taken 1 | . 1 . . Unknown Exits Taken 2 | 1 . 1 . Scrap Searched . | . . . . Spaces Dug . | . . . . Terrain Destroyed 14 | . 1 13 . Melee . | . . . . Projectile . | . . . . AOE 14 | . 1 13 . Terrain Rammed . | . . . . Walls Destroyed . | . . . . Machines Disabled . | . . . . Actions | -11 -10 -9 -8 --------- Run | Yrd Mat Mat Mat Total 994 | 5 244 383 362 Wait 28 | . . 6 22 Move 727 | . 225 294 208 Hop . | . . . . Pick Up 36 | . 5 20 11 Fast Attach 5 | . 1 . 4 Attach 15 | . . 8 7 Detach . | . . . . Swap 12 | 2 . 3 7 Drop 18 | 3 . 5 10 Fire 152 | . 13 47 92 Melee . | . . . . Ram 1 | . . . 1 Kick . | . . . . Crush . | . . . . Escape Stasis . | . . . . Rewire . | . . . . Trap . | . . . . Miscellaneous . | . . . . Route ------- -11/Scrapyard -10/Materials (discovered 4 exits: *Mat x3 / [*Min]) -9/Materials -8/Materials History --------- Turn | Location | Event 6 | -11/Scrapyard | Discovered new exit (range 0) 6 | -11/Scrapyard | Entered Materials 170 | -10/Materials | Discovered new exit (range 5) 230 | -10/Materials | Identified exit to Materials 234 | -10/Materials | Discovered new exit (range 12) 274 | -10/Materials | Entered another Materials area 274 | -9/Materials | Evolved 2 slots: Propulsion x1, Utility x1 315 | -9/Materials | Build established: Mutant 638 | -9/Materials | Lost 4 parts (1p2n1w) 687 | -9/Materials | Discovered new exit (range 10) 761 | -9/Materials | Entered another Materials area 761 | -8/Materials | Evolved 2 slots: Utility x2 824 | -8/Materials | Garrison activated, responded to threat 1328 | -8/Materials | Core integrity fell below 50% 1355 | -8/Materials | Core integrity fell below 20% 1356 | -8/Materials | Lost 6 parts (1p3n2u) 1417 | -8/Materials | Destroyed by G-47 Trooper with Particle Gun Last Messages --------------- 01390_ R-06 Scavenger collects Terrain Scan Processor. 01393_ W-25 Informer sends out distress signal. 01394_ R-06 Scavenger collects Prototype Energy Gun. 01400_ R-06 Scavenger collects Lgt. Treads. 01401_ Acquired Prototype Launcher. 01404_ R-06 Scavenger collects Wheel. 01407_ Identified Adv. EMP Blaster. 01408_ G-47 Trooper suffers critical hit (Burn). 01408_ ALERT: Construction progress impeded, dispatching reinforcements to local area. 01411_ Imp. Weapon Shielding destroyed. 01413_ M-13 Machinist repairs Imp. Heat Sink. 01416_ U-05 Engineer lays Concrete. 01416_ Destroyed Welding Torch. 01416_ U-05 Engineer destroyed. 01416_ Atomic Centrifuge disabled. 01416_ R-06 Scavenger destroyed. 01416_ Destroyed Welding Torch. Map ----- +----------------------------------------------------+ | ?????????????????????????????????????????????????? | | ?????????????????????????????????????????????????? | | ?????????????????????????????????????????????????? | | ?????????????????????????????????????????????????? | | ?????????????????????????????????????????????????? | | ???????????????????????????????????????##+#####??? | | ???????????????????????????????????????# ???? | | ???????????????????????????????????????# """ # ? | | ??????????????????????????????????? ???? """?+ | | ??????????????????????????????????? ???? """?# | | ??????????????????????????????????? ????? ??# | | ??????????????????????????????????? ????? ??# | | ??????????????????????????????????? ?????#/#??# | | ??????????????????????????????????? ?????# #??# | | ??????????????????????????????????# ?????# #??# | | ?????????????????????????????????? #????# #??# | | ???????????????????????????? #????# #?#### #??# | | ?????????????????????????? #????# #?# #??# | | ??????????????????????????"" #????# #?# #?## | | ??????????????????????????R" #????# #?# #?# = | | ??????????????????????????"" #????# #?# #?# %[ | | ????????????#?????????????] ?????# #?# #?# T | | ?????????####a ##########+######## ###%% ### | | ???????? % g%m% %[^[t r | | ?????????? g g % %% %^= ############# | | ???????????" ug!%%% @ ! #???????????? | | ???????????" u%|##############/##???????????? | | ???????????""" ?????????????????? ????????????? | | ??????????? ?????????????????????? ????????????? | | ??????????????????????????????????? ""???????????? | | ??????????????????????????????????? ""???????????? | | ??????????????????????????????????? """??????????? | | ???????????????????????????????????? ???????????? | | ???????????????????????????????????? ????????????? | | ???????????????????????????????????? ????????????? | | ????????????????????????????????????#????????????? | | ?????????????????????????????????????????????????? | | ?????????????????????????????????????????????????? | | ?????????????????????????????????????????????????? | | ?????????????????????????????????????????????????? | | ?????????????????????????????????????????????????? | | ?????????????????????????????????????????????????? | | ?????????????????????????????????????????????????? | | ?????????????????????????????????????????????????? | | ?????????????????????????????????????????????????? | | ?????????????????????????????????????????????????? | | ?????????????????????????????????????????????????? | | ?????????????????????????????????????????????????? | | ?????????????????????????????????????????????????? | | ?????????????????????????????????????????????????? | +----------------------------------------------------+ Best States ------------- Heat Dissipation 45 Energy Generation 14 Energy Capacity 265 Matter Stores 374 Matter Capacity 450 Sight Range 16 Terrain Scan Density 10 Armor Coverage 150 Weapon Shielding 66 Evasion (%) 41 Targeting Accuracy 5 Recoil Reduction 3 Item Schematics ----------------- None Robot Schematics ------------------ None Fabricated ------------ Nothing Alien Tech Used ----------------- None Achievements -------------- None Challenges ------------ None Game ------ Seed MagneticTargetArmor Manual? 0 Play Time 00:15:02 Cumulative 112.3 hours Start 2024.04.19 @ 15:18:03 End 2024.04.19 @ 15:41:16 Sessions 1 Manual Loads 0 Difficulty Rogue Special Mode None Game No. 222 Rogue 222 Adventurer 0 Explorer 0 Win Type - Total 0 Types 0/0/0/0/0/0/0/0/0 Lore% 32 Gallery% 42 Achievement% 30 Wizard Run 0 Options --------- Layout 1 ASCII 0 Keyboard 0 Movement Mouse Keybinds 0 Fullscreen 1 Font 24/Smallcaps Map View 50x40 Zoom Use 0% Tactical HUD 1 Map Filters NONE Filters NONE Steam 1 RUN: 14785c22-7dbd-449a-aaa0-541aba2acbdb